bitfinex/quotes_BTCUSD_20250320
["timestamp","ask_amount","ask_price","bid_price","bid_amount"]
[1742491623021,0.56299587,83953.0,83944.0,0.238251]
[1742491623264,0.56199587,83953.0,83943.0,0.238256]
[1742491623696,0.56399587,83953.0,83944.0,0.238253]
[1742491623896,0.58267297,83953.0,83944.0,0.238253]
[1742491624130,0.58367297,83953.0,83941.0,0.001]
[1742491626189,0.58167297,83953.0,83941.0,0.001]
[1742491626388,0.58667297,83953.0,83941.0,0.001]
[1742491626907,0.58067297,83953.0,83941.0,0.001]
[1742491627109,0.58567297,83953.0,83941.0,0.001]
[1742491627281,0.59067297,83953.0,83941.0,0.001]
[1742491627488,0.59416501,83953.0,83941.0,0.001]
[1742491629057,0.61639819,83953.0,83941.0,0.001]
[1742491629266,0.31639819,83953.0,83941.0,0.00338249]
[1742491629471,0.61639819,83953.0,83941.0,0.001]
[1742491629676,0.31639819,83953.0,83941.0,0.001]
[1742491629883,0.61639819,83953.0,83941.0,0.001]
[1742491630118,0.61139819,83953.0,83941.0,0.001]
[1742491630324,0.61639819,83953.0,83941.0,0.001]
[1742491630525,0.61139819,83953.0,83941.0,0.001]
[1742491630680,0.61539819,83953.0,83941.0,0.001]
[1742491631104,0.59672109,83953.0,83952.0,2e-07]
[1742491633460,0.72292109,83953.0,83952.0,2e-07]
[1742491633627,0.71792109,83953.0,83952.0,2e-07]
[1742491633818,0.72792109,83953.0,83952.0,2e-07]
[1742491634781,0.59772109,83953.0,83952.0,2e-07]
[1742491635336,0.61640085,83953.0,83952.0,2e-07]
[1742491635807,0.59416767,83953.0,83952.0,2e-07]
[1742491639616,0.59450587,83953.0,83952.0,2e-07]
[1742491640992,0.7140809,83953.0,83952.0,2e-07]
[1742491641171,0.7943809,83953.0,83952.0,2e-07]
[1742491642805,0.77570114,83953.0,83952.0,2e-07]
[1742491646251,0.65612611,83953.0,83952.0,2e-07]
[1742491646454,0.57582611,83953.0,83952.0,2e-07]
[1742491647030,0.59450623,83953.0,83952.0,2e-07]
[1742491647980,0.71408126,83953.0,83952.0,2e-07]
[1742491648438,0.84428126,83953.0,83952.0,2e-07]
[1742491648751,0.86677327,83953.0,83952.0,2e-07]
[1742491648958,0.55021,83929.0,83928.0,0.0001692]
[1742491649389,0.55364207,83929.0,83928.0,0.0001692]
[1742491649743,0.57232367,83929.0,83928.0,0.0001692]
[1742491650087,0.57332367,83929.0,83928.0,0.0001692]
[1742491650289,0.57373956,83929.0,83928.0,0.0001692]
[1742491651391,0.57473956,83929.0,83928.0,0.0001692]
[1742491651741,0.57773956,83929.0,83928.0,0.0001692]
[1742491653309,0.55022,83926.0,83925.0,5.484e-05]
[1742491653460,0.55316178,83926.0,83925.0,5.484e-05]
[1742491654868,0.55416178,83926.0,83925.0,5.484e-05]
[1742491655718,0.55616178,83926.0,83925.0,5.484e-05]
[1742491656960,0.550243,83918.0,83917.0,1.5]
[1742491657591,0.57186825,83918.0,83917.0,1.5]
[1742491658221,0.58401437,83918.0,83917.0,1.5]
[1742491661201,0.550246,83917.0,83916.0,0.0125996]
[1742491661396,0.80694103,83917.0,83916.0,0.0125996]
[1742491661597,0.55312649,83917.0,83916.0,0.0125996]
[1742491661992,0.31479649,83917.0,83916.0,0.0125996]
[1742491662344,0.55312649,83917.0,83916.0,0.0125996]
[1742491662561,0.31479649,83917.0,83916.0,0.0125996]
[1742491662769,0.55312649,83917.0,83916.0,0.0125996]
[1742491662892,0.55612649,83917.0,83916.0,0.0125996]
[1742491663119,0.55312649,83917.0,83916.0,0.0125996]
[1742491663324,0.55512649,83917.0,83916.0,0.0125996]
[1742491663788,0.24121049,83917.0,83916.0,0.0125996]
[1742491663984,0.25312649,83917.0,83916.0,0.0125996]
[1742491664187,0.27581041,83917.0,83916.0,0.0125996]
[1742491664688,0.27281041,83917.0,83916.0,0.0125996]
[1742491665679,0.27481041,83917.0,83916.0,0.0125996]
[1742491666961,0.27381041,83917.0,83916.0,0.0125996]
[1742491667182,0.27781041,83917.0,83916.0,0.0125996]
[1742491667764,0.83250544,83917.0,83916.0,6e-07]
[1742491667957,0.83750544,83917.0,83916.0,6e-07]
[1742491668164,0.550261,83912.0,83911.0,0.0009606]
[1742491668544,0.55313199,83912.0,83911.0,0.0009606]
[1742491669204,0.550273,83908.0,83907.0,0.0001692]
[1742491669836,0.57183248,83908.0,83907.0,0.0001692]
[1742491670061,0.7004272,83908.0,83907.0,0.0001692]
[1742491670451,0.7024272,83908.0,83907.0,0.0001692]
[1742491671212,0.7054272,83908.0,83907.0,0.0001692]
[1742491672519,0.7054272,83908.0,83881.0,0.001]
[1742491672520,0.550351,83882.0,83881.0,0.001]
[1742491672824,0.54125257,83882.0,83881.0,0.001]
[1742491673027,0.30282257,83882.0,83881.0,0.251354]
[1742491673247,0.30282257,83882.0,83881.0,0.37092903]
[1742491673416,0.3,83882.0,83881.0,0.37092903]
[1742491673596,0.30282257,83882.0,83881.0,1.87092903]
[1742491673810,0.30323795,83882.0,83881.0,1.87092903]
[1742491674029,0.00041538,83882.0,83881.0,1.87092903]
[1742491674221,0.01260386,83882.0,83881.0,1.87092903]
[1742491674383,0.00041538,83882.0,83881.0,1.87092903]
[1742491675010,0.00041538,83882.0,83881.0,1.95122903]
[1742491676636,0.00041538,83882.0,83881.0,1.70087503]
[1742491676860,0.00041538,83882.0,83881.0,1.819733]
[1742491677344,0.00041538,83882.0,83881.0,1.831654]
[1742491677745,0.00041538,83882.0,83881.0,1.819733]
[1742491677970,0.23884538,83882.0,83881.0,1.5813]
[1742491678375,0.00041538,83882.0,83881.0,1.819733]
[1742491678543,0.00323386,83882.0,83881.0,1.819733]
[1742491678896,0.00323386,83882.0,83881.0,1.831654]
[1742491679096,0.00323386,83882.0,83881.0,1.819733]
[1742491679320,0.00041538,83882.0,83881.0,1.819733]
[1742491679810,0.23884538,83882.0,83881.0,1.5813]
[1742491680015,0.24166386,83882.0,83881.0,1.5813]
[1742491680214,0.25358486,83882.0,83881.0,1.501]
[1742491680790,0.55358486,83882.0,83881.0,1.501]
[1742491681142,0.55358486,83882.0,83881.0,0.001]
[1742491684103,0.30323386,83882.0,83881.0,0.001]
[1742491684305,0.00323386,83882.0,83881.0,0.251354]
[1742491684523,0.00041538,83882.0,83881.0,0.44842903]
[1742491684978,0.25076638,83882.0,83881.0,0.0785]
[1742491685156,0.25356511,83882.0,83881.0,1.501]
[1742491685353,0.55356511,83882.0,83881.0,0.001]
[1742491687382,0.55356511,83882.0,83881.0,0.0011692]
[1742491689060,0.55039,83869.0,83868.0,0.0001691]
[1742491689415,0.55318374,83869.0,83868.0,0.0001691]
[1742491689797,0.5718792,83869.0,83868.0,0.0001691]
[1742491690766,0.55718374,83869.0,83868.0,0.0001691]
[1742491690955,0.55618374,83869.0,83868.0,0.0001691]
[1742491691364,0.55518374,83869.0,83868.0,0.0001691]
[1742491691945,0.30479374,83869.0,83868.0,0.0001691]
[1742491692143,0.30479374,83869.0,83868.0,0.2505611]
[1742491692350,0.30479374,83869.0,83868.0,0.0001691]
[1742491692725,0.30479374,83869.0,83868.0,0.2386381]
[1742491692922,0.30779374,83869.0,83868.0,0.11974413]
[1742491693237,0.54626074,83869.0,83868.0,1.61974413]
[1742491694286,0.55818374,83869.0,83868.0,1.61974413]
[1742491694503,0.55818374,83869.0,83868.0,1.5001691]
[1742491695146,0.5649552,83869.0,83868.0,1.5001691]
[1742491695330,0.5768782,83869.0,83868.0,1.5001691]
[1742491696737,0.3264882,83869.0,83868.0,1.85821313]
[1742491696974,0.32369446,83869.0,83868.0,1.61974413]
[1742491697410,0.32645178,83869.0,83868.0,1.61974413]
[1742491697748,0.00775732,83869.0,83868.0,1.96607698]
[1742491697958,0.005,83869.0,83868.0,1.96607698]
[1742491698987,0.002,83869.0,83868.0,1.96607698]
[1742491699594,0.01869363,83885.0,83881.0,0.250354]
[1742491699804,0.01869363,83885.0,83881.0,0.50712903]
[1742491700588,0.01869363,83885.0,83875.0,0.111922]
[1742491700589,0.01233638,83882.0,83868.0,1.60599057]
[1742491700795,0.01233638,83882.0,83873.0,0.238453]
[1742491700796,0.238448,83876.0,83873.0,0.238453]
[1742491701003,0.238448,83876.0,83874.0,0.11957503]
[1742491701215,0.250369,83876.0,83874.0,0.11957503]
[1742491701404,0.250384,83871.0,83870.0,0.1372]
[1742491701627,0.250384,83871.0,83870.0,0.25677503]
[1742491702208,0.25306836,83871.0,83870.0,0.25677503]
[1742491702411,0.25306836,83871.0,83870.0,0.11957503]
[1742491702560,0.250387,83870.0,83869.0,0.56756]
[1742491702765,0.25039,83869.0,83868.0,0.0001691]
[1742491702984,0.25307436,83869.0,83868.0,0.0001691]
[1742491706111,0.00268436,83869.0,83868.0,0.35821313]
[1742491706313,0.00268436,83869.0,83868.0,0.37013613]
[1742491706511,0.01869421,83871.0,83870.0,0.238464]
[1742491706711,0.01869421,83871.0,83870.0,0.11957503]
[1742491706963,0.01869421,83871.0,83870.0,0.36996203]
[1742491707457,0.01869421,83871.0,83870.0,0.44656203]
[1742491707664,0.02136317,83871.0,83870.0,0.44656203]
[1742491708482,0.01869421,83871.0,83870.0,0.44656203]
[1742491708821,0.3,83879.0,83878.0,0.250363]
[1742491709031,0.3,83879.0,83878.0,0.36993803]
[1742491709232,0.30266896,83879.0,83878.0,0.11957503]
[1742491709487,0.00266896,83879.0,83878.0,0.11957503]
[1742491709897,0.250359,83879.0,83878.0,0.11957503]
[1742491710104,0.25302796,83879.0,83878.0,0.11957503]
[1742491710484,0.24210696,83879.0,83878.0,0.11957503]
[1742491710691,0.00366896,83879.0,83878.0,0.11957503]
[1742491711224,0.24210696,83879.0,83878.0,0.11957503]
[1742491711578,0.25402796,83879.0,83878.0,0.11957503]
[1742491712218,0.25402796,83879.0,83869.0,0.375664]
[1742491712219,0.011922,83872.0,83867.0,0.011923]
[1742491712419,0.25039,83869.0,83867.0,0.1372]
[1742491713136,0.25307298,83869.0,83867.0,0.1372]
[1742491714517,0.25307298,83869.0,83865.0,0.02439257]
[1742491714721,0.25307298,83869.0,83867.0,0.13716]
[1742491716530,0.24114998,83869.0,83867.0,0.13716]
[1742491716951,0.25307298,83869.0,83867.0,0.13716]
[1742491719804,0.24114998,83869.0,83867.0,0.13716]
[1742491720025,0.00268298,83869.0,83868.0,0.37013613]
[1742491721085,0.238459,83872.0,83868.0,0.35821313]
[1742491721246,0.238459,83872.0,83868.0,0.11974413]
[1742491721442,0.238467,83870.0,83868.0,0.11974413]
[1742491721864,0.238467,83869.0,83868.0,0.11974413]
[1742491722199,0.238467,83869.0,83868.0,0.0001691]
[1742491722200,0.55352014,83869.0,83868.0,0.0001691]
[1742491724736,0.57221602,83869.0,83868.0,0.0001691]
[1742491724941,0.57421602,83869.0,83868.0,0.0001691]
[1742491725915,0.57521602,83869.0,83868.0,0.0001691]
[1742491728728,0.32482602,83869.0,83868.0,0.0001691]
[1742491728921,0.57521602,83869.0,83868.0,0.0001691]
[1742491729339,0.57321602,83869.0,83868.0,0.0001691]
[1742491729742,0.57221602,83869.0,83868.0,0.0001691]
[1742491732031,0.56029302,83869.0,83868.0,0.0001691]
[1742491732314,0.32182602,83869.0,83868.0,0.11974413]
[1742491732497,0.56029302,83869.0,83868.0,0.11974413]
[1742491733045,0.57221602,83869.0,83868.0,0.11974413]
[1742491733251,0.32182602,83869.0,83868.0,0.11974413]
[1742491733483,0.56029302,83869.0,83868.0,0.11974413]
[1742491733689,0.57221602,83869.0,83868.0,0.11974413]
[1742491734235,0.57221602,83869.0,83868.0,0.0001691]
[1742491739928,0.32182602,83869.0,83868.0,0.0001691]
[1742491740155,0.56029302,83869.0,83868.0,0.0001691]
[1742491740357,0.32182602,83869.0,83868.0,0.2386381]
[1742491740553,0.56029302,83869.0,83868.0,0.0001691]
[1742491740764,0.57221602,83869.0,83868.0,0.0001691]
[1742491742514,0.32182602,83869.0,83868.0,0.2386381]
[1742491742716,0.32182602,83869.0,83868.0,0.0001691]
[1742491742987,0.56029302,83869.0,83868.0,0.0001691]
[1742491743292,0.32182602,83869.0,83868.0,0.0001691]
[1742491743691,0.32182602,83869.0,83868.0,0.2386381]
[1742491743926,0.32182602,83869.0,83868.0,0.0001691]
[1742491744064,0.32182602,83869.0,83868.0,0.2386381]
[1742491744266,0.02182602,83869.0,83868.0,0.50729613]
[1742491744488,0.00313014,83869.0,83868.0,0.63309613]
[1742491744659,0.0003386,83881.0,83879.0,0.238438]
[1742491744860,0.0003386,83881.0,83880.0,0.36993103]
[1742491745081,0.0003386,83881.0,83880.0,0.52163188]
[1742491745296,0.0003386,83881.0,83880.0,0.60423188]
[1742491745584,0.0003386,83881.0,83880.0,2.42890108]
[1742491745759,0.0003386,83881.0,83880.0,2.58958126]
[1742491745955,0.0003386,83881.0,83880.0,2.45242126]
[1742491746159,0.0003386,83881.0,83880.0,2.59458126]
[1742491746589,6e-07,83881.0,83880.0,2.61958126]
[1742491746997,6e-07,83881.0,83880.0,2.55242126]
[1742491747195,6e-07,83881.0,83880.0,2.45242126]
[1742491747404,6e-07,83881.0,83880.0,2.68958126]
[1742491747986,6e-07,83881.0,83880.0,2.30708041]
[1742491748190,0.0010006,83881.0,83880.0,0.69388441]
[1742491748388,0.00415178,83881.0,83880.0,0.94424041]
[1742491748590,0.2394336,83881.0,83880.0,0.69388441]
[1742491748818,0.24358478,83881.0,83880.0,0.55672441]
[1742491748992,0.00415178,83881.0,83880.0,0.55672441]
[1742491749197,0.00315178,83881.0,83880.0,0.82162126]
[1742491749400,6e-07,83881.0,83880.0,0.82162126]
[1742491750685,6e-07,83881.0,83880.0,0.80708041]
[1742491751253,6e-07,83881.0,83868.0,0.0783691]
[1742491751371,0.011923,83870.0,83868.0,0.0001691]
[1742491751578,0.00331487,83870.0,83869.0,0.13083218]
[1742491751814,0.311922,83876.0,83869.0,0.13083218]
[1742491752018,0.3,83872.0,83869.0,0.13083218]
[1742491752215,0.00303116,83871.0,83870.0,0.238464]
[1742491752558,0.00303116,83871.0,83870.0,0.36996203]
[1742491752776,0.00303116,83871.0,83870.0,1.86996203]
[1742491752977,0.3,83872.0,83871.0,0.250384]
[1742491753178,6e-07,83881.0,83880.0,0.238435]
[1742491753372,6e-07,83881.0,83880.0,0.36993103]
[1742491753508,0.00330732,83881.0,83880.0,0.36993103]
[1742491753712,6e-07,83881.0,83880.0,0.50705103]
[1742491753925,6e-07,83881.0,83880.0,0.62159188]
[1742491754642,6e-07,83881.0,83880.0,2.12159188]
[1742491755135,6e-07,83881.0,83880.0,3.10274108]
[1742491755311,6e-07,83881.0,83880.0,3.17834108]
[1742491756215,6e-07,83881.0,83880.0,3.19040584]
[1742491756592,0.0010006,83881.0,83880.0,3.19040584]
[1742491757156,6e-07,83881.0,83880.0,3.19540584]
[1742491757424,6e-07,83881.0,83880.0,3.27340584]
[1742491757728,9.8e-07,83882.0,83881.0,0.67709485]
[1742491757909,9.8e-07,83882.0,83881.0,0.79666988]
[1742491758576,9.8e-07,83882.0,83881.0,2.29666988]
[1742491758769,0.0003384,83907.0,83881.0,2.29666988]
[1742491758770,0.0003384,83907.0,83906.0,0.49551985]
[1742491758920,0.0003384,83907.0,83906.0,1.7332431]
[1742491759154,0.0003384,83907.0,83906.0,2.0382431]
[1742491759330,4e-07,83907.0,83906.0,2.0632431]
[1742491759531,4e-07,83907.0,83906.0,3.5632431]
[1742491759739,4e-07,83907.0,83906.0,3.58687895]
[1742491760323,4e-07,83907.0,83906.0,3.59187895]
[1742491760712,4e-07,83907.0,83906.0,3.60061164]
[1742491761579,4e-07,83907.0,83906.0,3.57561164]
[1742491761782,4e-07,83907.0,83906.0,3.26683895]
[1742491761998,4e-07,83907.0,83906.0,3.26783895]
[1742491762424,4e-07,83907.0,83906.0,3.13175895]
[1742491762633,4e-07,83907.0,83906.0,3.26283895]
[1742491763030,4e-07,83907.0,83906.0,3.26783895]
[1742491763246,4e-07,83907.0,83906.0,3.25683895]
[1742491763737,4e-07,83907.0,83906.0,3.21943895]
[1742491764157,4e-07,83907.0,83906.0,3.21343895]
[1742491764509,4e-07,83907.0,83906.0,3.21843895]
[1742491765162,4e-07,83907.0,83906.0,3.21343895]
[1742491765782,4e-07,83907.0,83906.0,3.20843895]
[1742491765959,4e-07,83907.0,83906.0,2.88905895]
[1742491766277,4e-07,83907.0,83906.0,3.12613895]
[1742491766819,4e-07,83907.0,83906.0,3.13113895]
[1742491767465,4e-07,83907.0,83906.0,3.13513895]
[1742491768265,4e-07,83907.0,83906.0,3.14013895]
[1742491768690,4e-07,83907.0,83906.0,3.21843895]
[1742491769065,4e-07,83907.0,83906.0,3.21343895]
[1742491769487,4e-07,83907.0,83906.0,3.11343895]
[1742491769662,4e-07,83907.0,83906.0,3.13513895]
[1742491771172,4e-07,83907.0,83906.0,3.13509895]
[1742491773382,4e-07,83907.0,83906.0,3.14009895]
[1742491773522,4e-07,83907.0,83906.0,3.21909895]
[1742491773925,4e-07,83907.0,83906.0,3.26579895]
[1742491774150,4e-07,83907.0,83906.0,3.56579895]
[1742491774371,4e-07,83907.0,83906.0,3.59079895]
[1742491776268,0.0819,83962.0,83948.0,0.1]
[1742491776470,0.238213,83959.0,83952.0,0.36468285]
[1742491776685,0.0122496,83956.0,83952.0,0.21957503]
[1742491776885,0.238224,83955.0,83952.0,1.71957503]
[1742491777088,0.2385662,83953.0,83952.0,1.71957503]
[1742491777202,0.0003382,83953.0,83952.0,1.73148603]
[1742491777411,0.0003382,83953.0,83952.0,1.98425788]
[1742491777624,0.0003382,83953.0,83952.0,1.98438266]
[1742491779291,0.0003382,83953.0,83952.0,1.98538266]
[1742491779495,0.0003382,83953.0,83952.0,1.98738266]
[1742491779868,0.0003382,83953.0,83952.0,1.98538266]
[1742491780143,0.0003382,83953.0,83952.0,1.98738266]
[1742491782970,0.0003382,83953.0,83952.0,2.12438266]
[1742491784607,0.0003382,83953.0,83952.0,2.14805339]
[1742491784939,0.0003382,83953.0,83952.0,2.56168121]
[1742491786333,0.0003382,83953.0,83952.0,0.96168121]
[1742491786888,0.0003382,83953.0,83952.0,2.46168121]
[1742491787260,0.0003382,83953.0,83952.0,2.46068121]
[1742491787462,0.0003382,83953.0,83952.0,2.44414036]
[1742491787665,0.0003382,83953.0,83952.0,2.44514036]
[1742491788886,0.0003382,83953.0,83952.0,2.45968121]
[1742491791829,0.0003382,83953.0,83952.0,2.55968121]
[1742491792027,0.0003382,83953.0,83952.0,2.45964121]
[1742491792336,0.0003382,83953.0,83952.0,2.44510036]
[1742491792544,0.0003382,83953.0,83952.0,3.01206036]
[1742491792743,0.0003382,83953.0,83952.0,3.02660121]
[1742491793367,0.0003382,83953.0,83952.0,2.76191836]
[1742491793697,0.0003382,83953.0,83952.0,3.01206036]
[1742491794842,0.0003382,83953.0,83952.0,2.87510036]
[1742491795081,0.0003382,83953.0,83952.0,3.01206036]
[1742491795643,0.0003382,83953.0,83952.0,2.87510036]
[1742491795844,0.0003382,83953.0,83952.0,1.51206036]
[1742491796195,0.0003382,83953.0,83952.0,1.26191836]
[1742491796399,0.0003382,83953.0,83952.0,2.76191836]
[1742491796625,0.0003382,83953.0,83952.0,2.34829054]
[1742491796802,0.00351949,83953.0,83952.0,2.59843254]
[1742491796952,0.0003382,83953.0,83952.0,2.59843254]
[1742491797150,0.00351949,83953.0,83952.0,2.59843254]
[1742491797388,0.0003382,83953.0,83952.0,2.59843254]
[1742491797592,0.55365849,83953.0,83952.0,0.00112478]
[1742491797959,0.55364234,83953.0,83952.0,0.00112478]
[1742491798133,0.69451856,83953.0,83952.0,0.00112478]
[1742491798781,0.69651856,83953.0,83952.0,0.00112478]
[1742491799201,0.69651856,83953.0,83924.0,0.238309]
[1742491799202,0.69651856,83953.0,83906.0,0.41379702]
[1742491799203,0.56395459,83953.0,83906.0,0.41379702]
[1742491799415,0.550243,83918.0,83906.0,0.41379702]
[1742491799621,0.55337943,83918.0,83906.0,0.41379702]
[1742491799818,0.55337943,83918.0,83906.0,0.0001692]
[1742491800263,0.57206474,83918.0,83906.0,0.0001692]
[1742491800666,0.57206474,83918.0,83909.0,0.238352]
[1742491800874,0.5602734,83918.0,83917.0,0.11974413]
[1742491801088,0.5721894,83918.0,83917.0,0.11974413]
[1742491802144,0.58423705,83918.0,83917.0,0.11974413]
[1742491802430,0.58423705,83918.0,83917.0,0.0001691]
[1742491803045,0.58523705,83918.0,83917.0,0.0001691]
[1742491803253,0.56755174,83918.0,83917.0,0.0001691]
[1742491803796,0.56655174,83918.0,83917.0,0.0001691]
[1742491803997,0.56555174,83918.0,83917.0,0.0001691]
[1742491804480,0.56955174,83918.0,83917.0,0.0001691]
[1742491806238,0.5882376,83918.0,83917.0,0.0001691]
[1742491806462,0.5872376,83918.0,83917.0,0.0001691]
[1742491806662,0.5912376,83918.0,83917.0,0.0001691]
[1742491808111,0.3409946,83918.0,83917.0,0.0001691]
[1742491808298,0.3529106,83918.0,83917.0,0.0001691]
[1742491809362,0.3459106,83918.0,83917.0,0.0001691]
[1742491809577,0.3489106,83918.0,83917.0,0.0001691]
[1742491811342,0.3489106,83918.0,83917.0,0.24620098]
[1742491811343,0.00626109,83918.0,83917.0,0.24620098]
[1742491811549,0.00626109,83918.0,83917.0,0.38236727]
[1742491811760,0.00626109,83918.0,83917.0,0.38736727]
[1742491811964,0.00626109,83918.0,83917.0,0.82599509]
[1742491812171,0.26480804,83950.0,83946.0,0.238248]
[1742491812487,0.238238,83950.0,83945.0,0.238251]
[1742491812684,0.250156,83949.0,83945.0,0.00038683]
[1742491812867,0.011912,83946.0,83945.0,0.00038683]
[1742491813093,0.011911,83949.0,83945.0,0.00038683]
[1742491813094,0.250158,83948.0,83945.0,0.00038683]
[1742491813365,0.011912,83946.0,83945.0,0.00038683]
[1742491813538,0.238245,83947.0,83945.0,0.00038683]
[1742491813740,0.000338,83952.0,83950.0,0.01454085]
[1742491813948,0.000338,83952.0,83951.0,0.14840893]
[1742491814314,0.000338,83952.0,83951.0,0.38664293]
[1742491814511,0.000338,83952.0,83951.0,0.38426088]
[1742491815706,0.000338,83952.0,83951.0,1.88426088]
[1742491816759,0.000338,83952.0,83951.0,1.88626088]
[1742491817396,0.000338,83952.0,83951.0,1.88526088]
[1742491817815,0.000338,83952.0,83951.0,1.88726088]
[1742491818231,0.25048,83952.0,83951.0,1.62157503]
[1742491818433,0.000338,83952.0,83951.0,0.50872003]
[1742491819045,0.000338,83952.0,83951.0,0.52126088]
[1742491819450,0.000338,83952.0,83951.0,0.52426088]
[1742491819570,0.000338,83952.0,83951.0,0.52626088]
[1742491819771,0.000338,83952.0,83951.0,0.52126088]
[1742491819972,0.000338,83952.0,83951.0,0.9348887]
[1742491820195,0.000338,83952.0,83951.0,0.9388887]
[1742491820571,0.000338,83952.0,83951.0,0.9368887]
[1742491820758,0.000338,83952.0,83951.0,0.9378887]
[1742491821443,0.000338,83952.0,83951.0,0.9408887]
[1742491823335,0.000338,83952.0,83951.0,1.0683887]
[1742491823915,0.000338,83952.0,83951.0,1.0653887]
[1742491824319,0.000338,83952.0,83951.0,1.0673887]
[1742491824639,0.000338,83952.0,83951.0,1.0723887]
[1742491825708,0.000338,83952.0,83951.0,2.5723887]
[1742491826143,0.000338,83952.0,83951.0,2.5353887]
[1742491826457,0.000338,83952.0,83951.0,2.5448487]
[1742491826945,0.25048,83952.0,83951.0,0.42362782]
[1742491827112,0.000338,83952.0,83951.0,0.66186182]
[1742491827319,0.00311204,83952.0,83951.0,0.66186182]
[1742491827517,0.000338,83952.0,83951.0,0.77643685]
[1742491827815,0.000338,83952.0,83951.0,0.78634785]
[1742491828027,0.01205383,83952.0,83951.0,0.78634785]
[1742491828241,0.000338,83952.0,83951.0,0.78934785]
[1742491828450,0.01229053,83952.0,83951.0,0.53920285]
[1742491828677,0.000338,83952.0,83951.0,0.77443685]
[1742491828875,0.00309306,83952.0,83951.0,0.53620285]
[1742491829208,0.21500186,83956.0,83952.0,0.238228]
[1742491829363,0.26880261,83957.0,83954.0,0.238224]
[1742491829560,0.01867561,83957.0,83955.0,0.11957503]
[1742491829792,0.25689261,83957.0,83955.0,0.11957503]
[1742491830197,0.01867561,83957.0,83956.0,0.23822]
[1742491830393,0.03082085,83957.0,83956.0,0.36970603]
[1742491830796,0.0003386,83964.0,83963.0,0.25011]
[1742491831096,0.0003386,83964.0,83963.0,0.50664503]
[1742491831414,0.0003386,83964.0,83963.0,0.13148503]
[1742491831622,0.01233914,83964.0,83963.0,0.35777503]
[1742491831827,0.01233914,83964.0,83963.0,0.11957503]
[1742491832002,0.01233914,83964.0,83963.0,0.35777503]
[1742491832380,0.01233914,83964.0,83963.0,0.11957503]
[1742491832551,0.25053614,83964.0,83963.0,0.11957503]
[1742491832759,0.01191,83957.0,83951.0,0.41362782]
[1742491832960,0.250127,83957.0,83951.0,0.41362782]
[1742491833190,0.01191,83959.0,83952.0,0.011911]
[1742491833383,0.250129,83957.0,83956.0,0.11957503]
[1742491833596,0.238214,83959.0,83956.0,0.12057503]
[1742491833789,0.54980958,83965.0,83960.0,0.01191]
[1742491833790,0.31233914,83964.0,83960.0,0.01191]
[1742491833988,0.31233914,83964.0,83963.0,0.25011]
[1742491834146,0.31233914,83964.0,83963.0,0.11957503]
[1742491834147,0.01233914,83964.0,83963.0,0.11957503]
[1742491834773,0.01482474,83964.0,83963.0,0.36968503]
[1742491835486,0.0003386,83964.0,83963.0,0.36968503]
[1742491835710,0.0003386,83964.0,83963.0,1.88422588]
[1742491837102,0.0003386,83964.0,83963.0,1.88622588]
[1742491837490,0.0003386,83964.0,83963.0,1.88822588]
[1742491839422,0.0003386,83964.0,83963.0,1.96702588]
[1742491839859,0.0003386,83964.0,83963.0,2.3806537]
[1742491840238,0.0003386,83964.0,83963.0,2.3786537]
[1742491840609,0.0003386,83964.0,83963.0,2.3806537]
[1742491840998,0.0003386,83964.0,83963.0,2.3786537]
[1742491841344,0.0003386,83964.0,83963.0,2.3806537]
[1742491843266,0.0003386,83964.0,83963.0,2.4018537]
[1742491845007,0.0003386,83964.0,83963.0,2.5387737]
[1742491847350,0.0003386,83964.0,83963.0,3.1056137]
[1742491847998,0.0003386,83964.0,83963.0,1.20404285]
[1742491848192,0.0003386,83964.0,83963.0,1.35087285]
[1742491848470,0.0003386,83964.0,83963.0,1.59207285]
[1742491848692,0.0003386,83964.0,83963.0,1.6066137]
[1742491848972,0.0003386,83964.0,83963.0,1.6046137]
[1742491849190,0.0003386,83964.0,83963.0,1.6076137]
[1742491849353,0.0003386,83964.0,83963.0,3.1076137]
[1742491852950,0.0003386,83964.0,83963.0,3.08116285]
[1742491853207,0.0003386,83964.0,83963.0,3.0076137]
[1742491854958,0.0003386,83964.0,83963.0,2.8706937]
[1742491855136,0.0003386,83964.0,83963.0,2.98116285]
[1742491855366,0.0003386,83964.0,83963.0,2.56753503]
[1742491855579,0.0003386,83964.0,83963.0,2.57944503]
[1742491856106,0.0003386,83964.0,83963.0,2.57644503]
[1742491856411,0.00287013,83964.0,83963.0,2.57644503]
[1742491857136,0.0003386,83964.0,83963.0,2.57344503]
[1742491857321,0.00287013,83964.0,83963.0,2.57444503]
[1742491857515,0.0003386,83964.0,83963.0,2.57444503]
[1742491858055,0.0003386,83964.0,83963.0,2.57544503]
[1742491858617,0.0003386,83964.0,83963.0,1.07544503]
[1742491859050,0.00287013,83964.0,83963.0,1.07544503]
[1742491859652,0.0003386,83964.0,83963.0,1.07544503]
[1742491860222,0.0003386,83964.0,83963.0,1.08998588]
[1742491861047,0.0003386,83964.0,83963.0,1.5036137]
[1742491861247,0.0003386,83964.0,83963.0,1.5026137]
[1742491861644,0.0003386,83964.0,83963.0,1.5046137]
[1742491862367,0.0003386,83964.0,83963.0,1.5036137]
[1742491862731,0.0003386,83964.0,83963.0,3.0056137]
[1742491865064,0.0003386,83964.0,83963.0,2.7674137]
[1742491865183,0.0003386,83964.0,83963.0,2.99107285]
[1742491865390,0.0003386,83964.0,83963.0,2.98907285]
[1742491865657,0.0003386,83964.0,83963.0,3.0036137]
[1742491865945,0.0003386,83964.0,83963.0,3.0016137]
[1742491866373,0.0003386,83964.0,83963.0,3.0046137]
[1742491867023,0.0003386,83964.0,83963.0,3.0076137]
[1742491867230,0.0003386,83964.0,83963.0,2.8587837]
[1742491867403,0.0003386,83964.0,83963.0,3.0075737]
[1742491870469,0.0003386,83964.0,83963.0,3.0843737]
[1742491870665,0.0003386,83964.0,83963.0,2.9474937]
[1742491870889,0.0003386,83964.0,83963.0,3.0843737]
[1742491871707,0.0003386,83964.0,83963.0,2.8706937]
[1742491871928,0.0003386,83964.0,83963.0,3.0075737]
[1742491873125,0.0003386,83964.0,83963.0,3.0549737]
[1742491873525,0.0003386,83965.0,83964.0,0.67504685]
[1742491873526,2e-07,83965.0,83964.0,0.67504685]
[1742491873729,2e-07,83965.0,83964.0,1.18856416]
[1742491873932,2e-07,83965.0,83964.0,1.22572934]
[1742491874267,2e-07,83965.0,83964.0,1.35132934]
[1742491875022,2e-07,83965.0,83964.0,1.39832934]
[1742491875181,2e-07,83965.0,83964.0,1.27872934]
[1742491875363,8e-07,83978.0,83977.0,0.45200885]
[1742491875707,4e-07,83981.0,83980.0,0.255058]
[1742491875923,4e-07,83981.0,83980.0,1.1278017]
[1742491876155,4e-07,83981.0,83980.0,0.8067359]